[Event "Titled Tuesday Blitz May 18 2021"]
[White "Andreikin, Dmitry"]
[Black "Orozbaev, Eldiar"]
[WhiteFideId "4158814"]
[BlackFideId "13802240"]
[WhiteElo "2782"]
[BlackElo "1914"]
[Result "1-0"]
[Round "01"]
[TimeControl "180+1"]
[Date "2021.05.18"]
[WhiteClock "0:00:31"]
[BlackClock "0:00:03"]

1. d4 {[%clk 0:03:00]}  Nf6 {[%clk 0:02:59]} 2. c4 {[%clk 0:02:59]}  e6 {[%clk 0:02:59]} 3. Nf3 {[%clk 0:02:58]}  d5 {[%clk 0:02:59]} 4. g3 {[%clk 0:02:54]}  c6 {[%clk 0:02:58]} 5. Nbd2 {[%clk 0:02:50]}  Be7 {[%clk 0:02:57]} 6. Bg2 {[%clk 0:02:49]}  O-O {[%clk 0:02:58]} 7. O-O {[%clk 0:02:49]}  b6 {[%clk 0:02:57]} 8. Qc2 {[%clk 0:02:46]}  Na6 {[%clk 0:02:55]} 9. e4 {[%clk 0:02:33]}  Nb4 {[%clk 0:02:45]} 10. Qb1 {[%clk 0:02:32]}  dxe4 {[%clk 0:01:58]} 11. Nxe4 {[%clk 0:02:29]}  Bb7 {[%clk 0:01:50]} 12. a3 {[%clk 0:02:24]}  Na6 {[%clk 0:01:49]} 13. Rd1 {[%clk 0:01:57]}  Rc8 {[%clk 0:01:42]} 14. Bf4 {[%clk 0:01:53]}  Qe8 {[%clk 0:01:12]} 15. Nd6 {[%clk 0:01:49]}  Bxd6 {[%clk 0:01:09]} 16. Bxd6 {[%clk 0:01:50]}  c5 {[%clk 0:01:09]} 17. Ne5 {[%clk 0:01:36]}  Bxg2 {[%clk 0:01:08]} 18. Kxg2 {[%clk 0:01:36]}  cxd4 {[%clk 0:01:05]} 19. Rxd4 {[%clk 0:01:34]}  Nc5 {[%clk 0:01:05]} 20. b4 {[%clk 0:01:26]}  Ncd7 {[%clk 0:01:00]} 21. Nf3 {[%clk 0:01:10]}  e5 {[%clk 0:00:56]} 22. Rd1 {[%clk 0:01:08]}  e4 {[%clk 0:00:54]} 23. Nd4 {[%clk 0:01:08]}  Rxc4 {[%clk 0:00:51]} 24. Qb3 {[%clk 0:01:07]}  Qc8 {[%clk 0:00:44]} 25. Bxf8 {[%clk 0:01:04]}  Nxf8 {[%clk 0:00:43]} 26. Nf5 {[%clk 0:01:01]}  Rc7 {[%clk 0:00:35]} 27. Rac1 {[%clk 0:00:56]}  Qb7 {[%clk 0:00:10]} 28. Qe3 {[%clk 0:00:43]}  Ng4 {[%clk 0:00:07]} 29. Qg5 {[%clk 0:00:35]}  e3+ {[%clk 0:00:07]} 30. f3 {[%clk 0:00:34]}  Ne6 {[%clk 0:00:03]} 31. Rd8+ {[%clk 0:00:31]} 1-0


[Site "https://www.chess.com"]

[Event "Titled Tuesday Blitz May 18 2021"]
[White "De Waele, Warre"]
[Black "Jobava, Baadur"]
[WhiteFideId "241156"]
[BlackFideId "13601520"]
[WhiteElo "2183"]
[BlackElo "2748"]
[Result "0-1"]
[Round "01"]
[TimeControl "180+1"]
[Date "2021.05.18"]
[WhiteClock "0:00:49"]
[BlackClock "0:01:37"]

1. d4 {[%clk 0:03:00]}  d5 {[%clk 0:02:48]} 2. c4 {[%clk 0:03:00]}  c6 {[%clk 0:02:47]} 3. Nf3 {[%clk 0:03:00]}  Nf6 {[%clk 0:02:46]} 4. e3 {[%clk 0:03:00]}  Bf5 {[%clk 0:02:41]} 5. Nc3 {[%clk 0:03:00]}  e6 {[%clk 0:02:41]} 6. Nh4 {[%clk 0:02:58]}  Bg6 {[%clk 0:02:41]} 7. Be2 {[%clk 0:02:48]}  Nbd7 {[%clk 0:02:41]} 8. Qb3 {[%clk 0:02:44]}  Qc7 {[%clk 0:02:38]} 9. Bd2 {[%clk 0:02:44]}  Be7 {[%clk 0:02:33]} 10. Rc1 {[%clk 0:02:39]}  O-O {[%clk 0:02:32]} 11. Nxg6 {[%clk 0:02:39]}  hxg6 {[%clk 0:02:33]} 12. O-O {[%clk 0:02:38]}  Nb6 {[%clk 0:02:30]} 13. Rfd1 {[%clk 0:02:18]}  dxc4 {[%clk 0:02:27]} 14. Bxc4 {[%clk 0:02:17]}  Nxc4 {[%clk 0:02:27]} 15. Qxc4 {[%clk 0:02:18]}  Rfd8 {[%clk 0:02:26]} 16. h3 {[%clk 0:02:07]}  Qb6 {[%clk 0:02:22]} 17. Na4 {[%clk 0:02:04]}  Qc7 {[%clk 0:02:22]} 18. Qc2 {[%clk 0:01:59]}  e5 {[%clk 0:02:18]} 19. dxe5 {[%clk 0:01:52]}  Qxe5 {[%clk 0:02:19]} 20. Be1 {[%clk 0:01:40]}  Bd6 {[%clk 0:02:15]} 21. g3 {[%clk 0:01:38]}  Qe6 {[%clk 0:02:15]} 22. Kg2 {[%clk 0:01:35]}  Qxa2 {[%clk 0:02:04]} 23. Bc3 {[%clk 0:01:07]}  Qe6 {[%clk 0:01:57]} 24. Bd4 {[%clk 0:01:06]}  Qe4+ {[%clk 0:01:51]} 25. Qxe4 {[%clk 0:01:05]}  Nxe4 {[%clk 0:01:52]} 26. Ra1 {[%clk 0:00:59]}  Bc7 {[%clk 0:01:48]} 27. Rdc1 {[%clk 0:00:57]}  a6 {[%clk 0:01:41]} 28. Nb6 {[%clk 0:00:50]}  Bxb6 {[%clk 0:01:36]} 29. Bxb6 {[%clk 0:00:49]}  Rd2 {[%clk 0:01:37]} 0-1


[Site "https://www.chess.com"]

[Event "Titled Tuesday Blitz May 18 2021"]
[White "Eden, James"]
[Black "Jacobson, Brandon"]
[WhiteFideId "666491"]
[BlackFideId "30901561"]
[WhiteElo "2176"]
[BlackElo "2362"]
[Result "0-1"]
[Round "01"]
[TimeControl "180+1"]
[Date "2021.05.18"]
[WhiteClock "0:00:46"]
[BlackClock "0:00:42"]

1. e4 {[%clk 0:02:56]}  c5 {[%clk 0:02:59]} 2. Nf3 {[%clk 0:02:56]}  Nc6 {[%clk 0:03:00]} 3. c3 {[%clk 0:02:55]}  Nf6 {[%clk 0:02:58]} 4. e5 {[%clk 0:02:55]}  Nd5 {[%clk 0:02:59]} 5. d4 {[%clk 0:02:54]}  cxd4 {[%clk 0:02:59]} 6. cxd4 {[%clk 0:02:55]}  d6 {[%clk 0:02:59]} 7. Bc4 {[%clk 0:02:55]}  Nb6 {[%clk 0:02:57]} 8. Bb5 {[%clk 0:02:54]}  Bd7 {[%clk 0:02:58]} 9. Nc3 {[%clk 0:02:40]}  dxe5 {[%clk 0:02:58]} 10. d5 {[%clk 0:02:36]}  Nb4 {[%clk 0:02:51]} 11. Bxd7+ {[%clk 0:02:27]}  Qxd7 {[%clk 0:02:51]} 12. a3 {[%clk 0:02:24]}  N4xd5 {[%clk 0:02:48]} 13. Nxe5 {[%clk 0:02:16]}  Qe6 {[%clk 0:02:44]} 14. Qe2 {[%clk 0:02:09]}  Nxc3 {[%clk 0:02:30]} 15. bxc3 {[%clk 0:02:08]}  f6 {[%clk 0:02:31]} 16. Nd3 {[%clk 0:02:04]}  Qxe2+ {[%clk 0:02:30]} 17. Kxe2 {[%clk 0:02:05]}  e5 {[%clk 0:02:28]} 18. Be3 {[%clk 0:02:05]}  Nd5 {[%clk 0:02:22]} 19. c4 {[%clk 0:02:01]}  Nxe3 {[%clk 0:02:10]} 20. Kxe3 {[%clk 0:02:02]}  Rc8 {[%clk 0:02:10]} 21. Rhb1 {[%clk 0:01:58]}  b6 {[%clk 0:02:09]} 22. a4 {[%clk 0:01:39]}  Rxc4 {[%clk 0:01:13]} 23. a5 {[%clk 0:01:38]}  e4 {[%clk 0:01:13]} 24. axb6 {[%clk 0:01:31]}  axb6 {[%clk 0:01:14]} 25. Nf4 {[%clk 0:01:18]}  Bc5+ {[%clk 0:01:06]} 26. Ke2 {[%clk 0:01:15]}  Kd7 {[%clk 0:00:48]} 27. Ra7+ {[%clk 0:01:12]}  Kc6 {[%clk 0:00:48]} 28. Rxg7 {[%clk 0:01:04]}  Rc2+ {[%clk 0:00:48]} 29. Kd1 {[%clk 0:00:59]}  Rxf2 {[%clk 0:00:48]} 30. g3 {[%clk 0:00:48]}  Rd8+ {[%clk 0:00:41]} 31. Ke1 {[%clk 0:00:46]}  Rxh2 {[%clk 0:00:42]} 0-1


[Site "https://www.chess.com"]

[Event "Titled Tuesday Blitz May 18 2021"]
[White "Le, Tuan Minh"]
[Black "Degenbaev, Aziz"]
[WhiteFideId "12401153"]
[BlackFideId "13802640"]
[WhiteElo "2450"]
[BlackElo "1932"]
[Result "1-0"]
[Round "01"]
[TimeControl "180+1"]
[Date "2021.05.18"]
[WhiteClock "0:01:59"]
[BlackClock "0:02:51"]

1. d4 {[%clk 0:02:55]}  f5 {[%clk 0:02:59]} 2. Nc3 {[%clk 0:02:54]}  Nf6 {[%clk 0:02:59]} 3. Bg5 {[%clk 0:02:53]}  d5 {[%clk 0:02:59]} 4. Bxf6 {[%clk 0:02:53]}  exf6 {[%clk 0:03:00]} 5. e3 {[%clk 0:02:53]}  Be6 {[%clk 0:03:00]} 6. Bd3 {[%clk 0:02:53]}  Nc6 {[%clk 0:03:00]} 7. a3 {[%clk 0:02:53]}  Qd7 {[%clk 0:03:00]} 8. Nge2 {[%clk 0:02:45]}  Bd6 {[%clk 0:02:59]} 9. b3 {[%clk 0:02:44]}  O-O-O {[%clk 0:02:58]} 10. Na4 {[%clk 0:02:43]}  g5 {[%clk 0:02:58]} 11. c4 {[%clk 0:02:36]}  Rde8 {[%clk 0:02:57]} 12. Nac3 {[%clk 0:02:33]}  f4 {[%clk 0:02:56]} 13. cxd5 {[%clk 0:02:31]}  fxe3 {[%clk 0:02:56]} 14. dxe6 {[%clk 0:02:03]}  exf2+ {[%clk 0:02:51]} 15. Kf1 {[%clk 0:02:03]}  Qxe6 {[%clk 0:02:51]} 16. d5 {[%clk 0:02:01]}  Qe3 {[%clk 0:02:51]} 17. dxc6 {[%clk 0:01:59]} 1-0


[Site "https://www.chess.com"]

[Event "Titled Tuesday Blitz May 18 2021"]
[White "Martinez Alcantara, Jose Eduardo"]
[Black "Viana Da Costa, Fernando"]
[WhiteFideId "3805662"]
[BlackFideId "2111900"]
[WhiteElo "2690"]
[BlackElo "2247"]
[Result "0-1"]
[Round "01"]
[TimeControl "180+1"]
[Date "2021.05.18"]
[WhiteClock "0:00:02"]
[BlackClock "0:00:13"]

1. e4 {[%clk 0:03:00]}  c5 {[%clk 0:02:59]} 2. Nf3 {[%clk 0:02:58]}  Nc6 {[%clk 0:03:00]} 3. Bc4 {[%clk 0:02:57]}  g6 {[%clk 0:02:59]} 4. Nc3 {[%clk 0:02:56]}  Bg7 {[%clk 0:02:58]} 5. h4 {[%clk 0:02:56]}  Nf6 {[%clk 0:02:52]} 6. d3 {[%clk 0:02:48]}  d6 {[%clk 0:02:49]} 7. Bf4 {[%clk 0:02:45]}  Bg4 {[%clk 0:02:47]} 8. Qd2 {[%clk 0:02:13]}  Bxf3 {[%clk 0:02:46]} 9. gxf3 {[%clk 0:02:14]}  Nd4 {[%clk 0:02:45]} 10. Qd1 {[%clk 0:02:14]}  O-O {[%clk 0:02:38]} 11. Be3 {[%clk 0:02:13]}  Nh5 {[%clk 0:02:19]} 12. Rb1 {[%clk 0:01:50]}  Rb8 {[%clk 0:01:35]} 13. Bxd4 {[%clk 0:01:35]}  Bxd4 {[%clk 0:01:30]} 14. Ne2 {[%clk 0:01:35]}  Be5 {[%clk 0:01:30]} 15. Qd2 {[%clk 0:01:31]}  b5 {[%clk 0:01:30]} 16. Bb3 {[%clk 0:01:32]}  c4 {[%clk 0:01:19]} 17. dxc4 {[%clk 0:01:30]}  bxc4 {[%clk 0:01:20]} 18. Bxc4 {[%clk 0:01:31]}  Bxb2 {[%clk 0:01:18]} 19. c3 {[%clk 0:01:22]}  Ba3 {[%clk 0:01:17]} 20. Rxb8 {[%clk 0:01:14]}  Qxb8 {[%clk 0:01:18]} 21. Bb3 {[%clk 0:01:15]}  Qc7 {[%clk 0:01:12]} 22. Rg1 {[%clk 0:01:09]}  e6 {[%clk 0:01:00]} 23. f4 {[%clk 0:00:58]}  Nf6 {[%clk 0:00:55]} 24. Qd3 {[%clk 0:00:51]}  d5 {[%clk 0:00:49]} 25. f5 {[%clk 0:00:45]}  Nxe4 {[%clk 0:00:41]} 26. f3 {[%clk 0:00:29]}  Nc5 {[%clk 0:00:31]} 27. Qd2 {[%clk 0:00:27]}  Nxb3 {[%clk 0:00:25]} 28. axb3 {[%clk 0:00:28]}  exf5 {[%clk 0:00:25]} 29. Qxd5 {[%clk 0:00:28]}  Re8 {[%clk 0:00:25]} 30. Kf1 {[%clk 0:00:26]}  Qe7 {[%clk 0:00:21]} 31. Qc4 {[%clk 0:00:23]}  Qe3 {[%clk 0:00:18]} 32. Rg3 {[%clk 0:00:07]}  Bc5 {[%clk 0:00:18]} 33. Ke1 {[%clk 0:00:04]}  Qf2+ {[%clk 0:00:15]} 34. Kd1 {[%clk 0:00:04]}  Rd8+ {[%clk 0:00:13]} 35. Kc2 {[%clk 0:00:02]}  Bb6 {[%clk 0:00:13]} 36. b4 {[%clk 0:00:02]}  Re8 {[%clk 0:00:13]} 0-1


[Site "https://www.chess.com"]

[Event "Titled Tuesday Blitz May 18 2021"]
[White "Naroditsky, Daniel"]
[Black "Orantes Taboada, Francisco"]
[WhiteFideId "2026961"]
[BlackFideId "22274758"]
[WhiteElo "2608"]
[BlackElo "2073"]
[Result "1-0"]
[Round "01"]
[TimeControl "180+1"]
[Date "2021.05.18"]
[WhiteClock "0:00:04"]
[BlackClock "0:00:02"]

1. e4 {[%clk 0:03:00]}  c5 {[%clk 0:02:58]} 2. c3 {[%clk 0:03:01]}  d5 {[%clk 0:02:57]} 3. exd5 {[%clk 0:03:00]}  Qxd5 {[%clk 0:02:58]} 4. d4 {[%clk 0:03:01]}  Nf6 {[%clk 0:02:58]} 5. Nf3 {[%clk 0:02:57]}  Bg4 {[%clk 0:02:57]} 6. Nbd2 {[%clk 0:02:54]}  cxd4 {[%clk 0:02:55]} 7. Bc4 {[%clk 0:02:50]}  Qd7 {[%clk 0:02:54]} 8. Qb3 {[%clk 0:02:38]}  e6 {[%clk 0:02:45]} 9. Ne5 {[%clk 0:02:37]}  Qc7 {[%clk 0:02:38]} 10. cxd4 {[%clk 0:02:32]}  Bd6 {[%clk 0:02:36]} 11. Nxg4 {[%clk 0:02:10]}  Nxg4 {[%clk 0:02:35]} 12. Ne4 {[%clk 0:02:11]}  Nc6 {[%clk 0:02:23]} 13. h3 {[%clk 0:01:53]}  Nf6 {[%clk 0:02:04]} 14. Nxf6+ {[%clk 0:01:48]}  gxf6 {[%clk 0:02:05]} 15. O-O {[%clk 0:01:30]}  Nxd4 {[%clk 0:01:56]} 16. Qd3 {[%clk 0:01:31]}  Nc6 {[%clk 0:01:53]} 17. Qf3 {[%clk 0:01:24]}  Nd4 {[%clk 0:01:37]} 18. Qd3 {[%clk 0:00:58]}  Rd8 {[%clk 0:01:21]} 19. Be3 {[%clk 0:00:45]}  Nc6 {[%clk 0:01:06]} 20. Qe4 {[%clk 0:00:35]}  Ke7 {[%clk 0:01:04]} 21. Rfe1 {[%clk 0:00:33]}  Rhg8 {[%clk 0:01:01]} 22. Rac1 {[%clk 0:00:27]}  Qa5 {[%clk 0:00:56]} 23. Qxh7 {[%clk 0:00:21]}  Qe5 {[%clk 0:00:47]} 24. f4 {[%clk 0:00:20]}  Qxb2 {[%clk 0:00:31]} 25. Re2 {[%clk 0:00:21]}  Qa3 {[%clk 0:00:04]} 26. Bxe6 {[%clk 0:00:20]}  Rdf8 {[%clk 0:00:04]} 27. Bb3 {[%clk 0:00:16]}  Kd8 {[%clk 0:00:04]} 28. Rd1 {[%clk 0:00:09]}  Rg3 {[%clk 0:00:03]} 29. Qf5 {[%clk 0:00:06]}  Rfg8 {[%clk 0:00:02]} 30. Qxf6+ {[%clk 0:00:05]}  Kc7 {[%clk 0:00:02]} 31. Qxf7+ {[%clk 0:00:05]}  Ne7 {[%clk 0:00:02]} 32. Qc4+ {[%clk 0:00:04]}  Kb8 {[%clk 0:00:02]} 33. Qd3 {[%clk 0:00:04]}  Bc5 {[%clk 0:00:03]} 34. Bxg8 {[%clk 0:00:03]}  Bxe3+ {[%clk 0:00:01]} 35. Rxe3 {[%clk 0:00:04]}  Qxd3 {[%clk 0:00:01]} 36. Rdxd3 {[%clk 0:00:04]}  Rxg8 {[%clk 0:00:02]} 37. Rxe7 {[%clk 0:00:04]} 1-0


[Site "https://www.chess.com"]

[Event "Titled Tuesday Blitz May 18 2021"]
[White "Perez, Maximiliano"]
[Black "Zubov, Alexander"]
[WhiteFideId "117234"]
[BlackFideId "14109409"]
[WhiteElo "2368"]
[BlackElo "2740"]
[Result "1-0"]
[Round "01"]
[TimeControl "180+1"]
[Date "2021.05.18"]
[WhiteClock "0:00:35"]
[BlackClock "0:00:40"]

1. e4 {[%clk 0:02:59]}  c5 {[%clk 0:02:56]} 2. Nf3 {[%clk 0:02:54]}  e6 {[%clk 0:02:56]} 3. d3 {[%clk 0:02:53]}  Nc6 {[%clk 0:02:53]} 4. g3 {[%clk 0:02:53]}  d5 {[%clk 0:02:48]} 5. Nbd2 {[%clk 0:02:52]}  Nf6 {[%clk 0:02:47]} 6. Bg2 {[%clk 0:02:53]}  Be7 {[%clk 0:02:47]} 7. O-O {[%clk 0:02:53]}  O-O {[%clk 0:02:46]} 8. Re1 {[%clk 0:02:54]}  b5 {[%clk 0:02:46]} 9. e5 {[%clk 0:02:51]}  Ne8 {[%clk 0:02:42]} 10. Nf1 {[%clk 0:02:52]}  Nc7 {[%clk 0:02:39]} 11. h4 {[%clk 0:02:51]}  b4 {[%clk 0:02:39]} 12. h5 {[%clk 0:02:51]}  Nb5 {[%clk 0:02:34]} 13. h6 {[%clk 0:02:34]}  g6 {[%clk 0:02:33]} 14. N1h2 {[%clk 0:02:29]}  Ncd4 {[%clk 0:02:23]} 15. Be3 {[%clk 0:02:15]}  a5 {[%clk 0:02:15]} 16. Qd2 {[%clk 0:02:15]}  a4 {[%clk 0:02:13]} 17. Bxd4 {[%clk 0:01:17]}  Nxd4 {[%clk 0:01:55]} 18. Nxd4 {[%clk 0:01:14]}  cxd4 {[%clk 0:01:55]} 19. Nf3 {[%clk 0:01:13]}  Bd7 {[%clk 0:01:40]} 20. Qf4 {[%clk 0:01:08]}  b3 {[%clk 0:01:29]} 21. axb3 {[%clk 0:01:06]}  axb3 {[%clk 0:01:29]} 22. cxb3 {[%clk 0:01:00]}  Qb6 {[%clk 0:01:23]} 23. Qxd4 {[%clk 0:00:54]}  Bc5 {[%clk 0:01:07]} 24. Qf4 {[%clk 0:00:53]}  Bxf2+ {[%clk 0:01:07]} 25. Kh2 {[%clk 0:00:42]}  f5 {[%clk 0:00:41]} 26. exf6 {[%clk 0:00:36]}  Bxe1 {[%clk 0:00:40]} 27. f7+ {[%clk 0:00:35]} 1-0


[Site "https://www.chess.com"]

[Event "Titled Tuesday Blitz May 18 2021"]
[White "Tabatabaei, M. Amin"]
[Black "Kovacsy, Barnabas"]
[WhiteFideId "12521213"]
[BlackFideId "769290"]
[WhiteElo "2555"]
[BlackElo "1938"]
[Result "1-0"]
[Round "01"]
[TimeControl "180+1"]
[Date "2021.05.18"]
[WhiteClock "0:02:50"]
[BlackClock "0:02:44"]

1. Nf3 {[%clk 0:03:00]}  Nf6 {[%clk 0:02:59]} 2. c4 {[%clk 0:03:01]}  g6 {[%clk 0:02:59]} 3. b3 {[%clk 0:03:00]}  Bg7 {[%clk 0:02:59]} 4. Bb2 {[%clk 0:03:01]}  O-O {[%clk 0:02:59]} 5. g3 {[%clk 0:03:01]}  b6 {[%clk 0:03:00]} 6. Bg2 {[%clk 0:03:01]}  Bb7 {[%clk 0:03:00]} 7. O-O {[%clk 0:03:01]}  c5 {[%clk 0:03:01]} 8. d4 {[%clk 0:03:01]}  cxd4 {[%clk 0:03:01]} 9. Qxd4 {[%clk 0:03:02]}  Nc6 {[%clk 0:03:00]} 10. Qc3 {[%clk 0:03:02]}  d6 {[%clk 0:02:58]} 11. Rd1 {[%clk 0:03:02]}  Qc7 {[%clk 0:02:58]} 12. Na3 {[%clk 0:02:59]}  a6 {[%clk 0:02:57]} 13. Qd2 {[%clk 0:02:58]}  Rad8 {[%clk 0:02:53]} 14. Rac1 {[%clk 0:02:58]}  Nb8 {[%clk 0:02:53]} 15. Nc2 {[%clk 0:02:56]}  Nbd7 {[%clk 0:02:53]} 16. Ne3 {[%clk 0:02:54]}  Nc5 {[%clk 0:02:46]} 17. Nd5 {[%clk 0:02:51]}  Nce4 {[%clk 0:02:44]} 18. Nxc7 {[%clk 0:02:50]} 1-0


[Site "https://www.chess.com"]

[Event "Titled Tuesday Blitz May 18 2021"]
[White "Tsyhanchuk_Stanislav"]
[Black "Quparadze, Giga"]
[BlackFideId "13602250"]
[WhiteElo "2466"]
[BlackElo "2658"]
[Result "1-0"]
[Round "01"]
[TimeControl "180+1"]
[Date "2021.05.18"]
[WhiteClock "0:00:44"]
[BlackClock "0:02:01"]

1. e4 {[%clk 0:03:00]}  c5 {[%clk 0:02:59]} 2. Nf3 {[%clk 0:02:59]}  e6 {[%clk 0:02:59]} 3. d4 {[%clk 0:02:59]}  cxd4 {[%clk 0:03:00]} 4. Nxd4 {[%clk 0:02:59]}  a6 {[%clk 0:03:00]} 5. Nc3 {[%clk 0:02:59]}  b5 {[%clk 0:02:59]} 6. Bd3 {[%clk 0:02:58]}  Qb6 {[%clk 0:02:58]} 7. Nf3 {[%clk 0:02:56]}  Nc6 {[%clk 0:02:58]} 8. O-O {[%clk 0:02:54]}  Qb8 {[%clk 0:02:57]} 9. e5 {[%clk 0:02:14]}  Nge7 {[%clk 0:02:53]} 10. Re1 {[%clk 0:02:08]}  Ng6 {[%clk 0:02:53]} 11. Bxg6 {[%clk 0:02:07]}  hxg6 {[%clk 0:02:54]} 12. Bf4 {[%clk 0:02:05]}  Be7 {[%clk 0:02:53]} 13. Ne4 {[%clk 0:02:01]}  Bb7 {[%clk 0:02:53]} 14. Qd2 {[%clk 0:01:58]}  Nb4 {[%clk 0:02:52]} 15. Nf6+ {[%clk 0:01:48]}  gxf6 {[%clk 0:02:44]} 16. exf6 {[%clk 0:01:49]}  Qc8 {[%clk 0:02:37]} 17. fxe7 {[%clk 0:01:44]}  Nd5 {[%clk 0:02:37]} 18. Bd6 {[%clk 0:01:41]}  Qc6 {[%clk 0:02:35]} 19. Ba3 {[%clk 0:01:41]}  Nxe7 {[%clk 0:02:28]} 20. Rad1 {[%clk 0:01:28]}  d6 {[%clk 0:02:16]} 21. Bxd6 {[%clk 0:01:23]}  O-O-O {[%clk 0:02:13]} 22. Qa5 {[%clk 0:01:09]}  Rxd6 {[%clk 0:02:10]} 23. Rxd6 {[%clk 0:01:10]}  Qxd6 {[%clk 0:02:11]} 24. Qc3+ {[%clk 0:01:10]}  Kd7 {[%clk 0:02:07]} 25. Qxh8 {[%clk 0:01:09]}  Bxf3 {[%clk 0:02:06]} 26. gxf3 {[%clk 0:01:08]}  Qf4 {[%clk 0:02:06]} 27. Qa8 {[%clk 0:01:05]}  Nd5 {[%clk 0:02:06]} 28. Qxa6 {[%clk 0:01:00]}  b4 {[%clk 0:02:02]} 29. Qb7+ {[%clk 0:00:46]}  Ke8 {[%clk 0:02:01]} 30. Qxd5 {[%clk 0:00:44]} 1-0


[Site "https://www.chess.com"]

[Event "Titled Tuesday Blitz May 18 2021"]
[White "ViditYT"]
[Black "Voege, Tobias"]
[BlackFideId "1270513"]
[WhiteElo "2947"]
[BlackElo "2283"]
[Result "1-0"]
[Round "01"]
[TimeControl "180+1"]
[Date "2021.05.18"]
[WhiteClock "0:01:13"]
[BlackClock "0:00:15"]

1. Nf3 {[%clk 0:03:00]}  c5 {[%clk 0:03:00]} 2. c4 {[%clk 0:02:59]}  g6 {[%clk 0:02:59]} 3. g3 {[%clk 0:02:56]}  Bg7 {[%clk 0:02:59]} 4. Bg2 {[%clk 0:02:57]}  Nf6 {[%clk 0:02:59]} 5. b3 {[%clk 0:02:53]}  d5 {[%clk 0:02:57]} 6. Bb2 {[%clk 0:02:45]}  O-O {[%clk 0:02:38]} 7. cxd5 {[%clk 0:02:39]}  Nxd5 {[%clk 0:02:38]} 8. Bxg7 {[%clk 0:02:39]}  Kxg7 {[%clk 0:02:39]} 9. Qc1 {[%clk 0:02:40]}  b6 {[%clk 0:02:31]} 10. Qb2+ {[%clk 0:02:32]}  Kg8 {[%clk 0:02:19]} 11. d4 {[%clk 0:02:31]}  Na6 {[%clk 0:02:13]} 12. O-O {[%clk 0:02:29]}  Bb7 {[%clk 0:02:12]} 13. Rd1 {[%clk 0:02:22]}  e6 {[%clk 0:01:43]} 14. Na3 {[%clk 0:01:50]}  Qf6 {[%clk 0:01:23]} 15. Nc4 {[%clk 0:01:40]}  Rfd8 {[%clk 0:01:08]} 16. Nfe5 {[%clk 0:01:30]}  Rac8 {[%clk 0:01:00]} 17. Rd3 {[%clk 0:01:17]}  Qg7 {[%clk 0:00:47]} 18. Rad1 {[%clk 0:01:14]}  Ne7 {[%clk 0:00:15]} 19. Bxb7 {[%clk 0:01:13]} 1-0


[Site "https://www.chess.com"]

[Event "Titled Tuesday Blitz May 18 2021"]
[White "Ward-Tsh"]
[Black "Salem, A.R. Saleh"]
[BlackFideId "9301348"]
[WhiteElo "2472"]
[BlackElo "2659"]
[Result "0-1"]
[Round "01"]
[TimeControl "180+1"]
[Date "2021.05.18"]
[WhiteClock "0:00:01"]
[BlackClock "0:00:09"]

1. e4 {[%clk 0:02:56]}  c6 {[%clk 0:02:51]} 2. Nf3 {[%clk 0:02:54]}  d5 {[%clk 0:02:49]} 3. Nc3 {[%clk 0:02:54]}  Bg4 {[%clk 0:02:48]} 4. h3 {[%clk 0:02:54]}  Bxf3 {[%clk 0:02:47]} 5. Qxf3 {[%clk 0:02:55]}  e6 {[%clk 0:02:48]} 6. d3 {[%clk 0:02:54]}  Nd7 {[%clk 0:02:38]} 7. Bd2 {[%clk 0:02:52]}  Qb6 {[%clk 0:02:31]} 8. O-O-O {[%clk 0:02:51]}  d4 {[%clk 0:02:22]} 9. Ne2 {[%clk 0:02:51]}  a5 {[%clk 0:02:19]} 10. g4 {[%clk 0:02:35]}  a4 {[%clk 0:02:17]} 11. g5 {[%clk 0:02:25]}  a3 {[%clk 0:02:14]} 12. b3 {[%clk 0:02:24]}  Bb4 {[%clk 0:02:13]} 13. h4 {[%clk 0:01:51]}  Bxd2+ {[%clk 0:02:05]} 14. Rxd2 {[%clk 0:01:52]}  Ne7 {[%clk 0:01:58]} 15. h5 {[%clk 0:01:47]}  Qa5 {[%clk 0:01:24]} 16. Qg3 {[%clk 0:01:44]}  c5 {[%clk 0:01:20]} 17. Bg2 {[%clk 0:01:14]}  Nc6 {[%clk 0:01:20]} 18. g6 {[%clk 0:01:12]}  hxg6 {[%clk 0:00:37]} 19. hxg6 {[%clk 0:01:04]}  Rxh1+ {[%clk 0:00:38]} 20. Bxh1 {[%clk 0:01:05]}  Nb4 {[%clk 0:00:39]} 21. gxf7+ {[%clk 0:01:00]}  Kxf7 {[%clk 0:00:40]} 22. Kb1 {[%clk 0:00:48]}  Nd5 {[%clk 0:00:20]} 23. exd5 {[%clk 0:00:42]}  Qxd2 {[%clk 0:00:20]} 24. dxe6+ {[%clk 0:00:42]}  Kxe6 {[%clk 0:00:12]} 25. Nf4+ {[%clk 0:00:20]}  Kf7 {[%clk 0:00:12]} 26. Bd5+ {[%clk 0:00:17]}  Kf8 {[%clk 0:00:12]} 27. Ne6+ {[%clk 0:00:14]}  Ke7 {[%clk 0:00:12]} 28. Qxg7+ {[%clk 0:00:14]}  Kd6 {[%clk 0:00:13]} 29. Qg3+ {[%clk 0:00:08]}  Ne5 {[%clk 0:00:13]} 30. Qg1 {[%clk 0:00:03]}  Rg8 {[%clk 0:00:13]} 31. Qh1 {[%clk 0:00:01]}  Qc3 {[%clk 0:00:10]} 32. Qc1 {[%clk 0:00:01]}  Rg1 {[%clk 0:00:09]} 0-1


[Site "https://www.chess.com"]